bitfinex-derivatives/quotes_ETHF0:USTF0_20250709
["timestamp","ask_amount","ask_price","bid_price","bid_amount"]
[1752075836407,0.75432,2651.0,2650.9,32.67122979]
[1752075837208,1.38152,2651.0,2650.9,31.91387979]
[1752075837405,0.75432,2651.0,2650.9,31.91387979]
[1752075837604,1.38152,2651.0,2650.9,32.66822979]
[1752075840605,1.38152,2651.0,2650.9,31.91387979]
[1752075841104,1.38152,2651.0,2650.9,32.66822979]
[1752075841309,1.38152,2651.0,2650.9,31.91387979]
[1752075841505,1.38152,2651.0,2650.9,32.66822979]
[1752075842305,1.38152,2651.0,2650.9,31.91387979]
[1752075843311,1.38152,2651.0,2650.9,32.66822979]
[1752075843506,1.38152,2651.0,2650.9,31.91387979]
[1752075844010,1.38152,2651.0,2650.9,27.4594]
[1752075844210,1.38152,2651.0,2650.9,31.91387979]
[1752075844510,1.38152,2651.0,2650.9,27.4594]
[1752075844712,1.38152,2651.0,2650.9,28.21375]
[1752075845712,1.38152,2651.0,2650.9,32.66822979]
[1752075847014,1.38152,2651.0,2650.9,31.91387979]
[1752075847314,1.38152,2651.0,2650.9,6.09087979]
[1752075847517,3.13493393,2651.0,2650.9,26.5008]
[1752075848108,6.34371393,2651.0,2650.8,25.82]
[1752075848314,1.99665,2650.9,2650.8,25.82]
[1752075848515,2.62385,2650.9,2650.8,25.82]
[1752075849014,0.75441,2650.7,2650.6,4.45447979]
[1752075849209,1.43601,2650.7,2650.6,31.70971979]
[1752075849406,0.75439,2650.9,2650.8,0.75435]
[1752075849710,0.75439,2650.9,2650.8,28.18465]
[1752075850519,0.75439,2650.9,2650.8,29.42585]
[1752075850917,1.38803,2651.1,2651.0,0.75432]
[1752075851109,0.75433,2651.1,2651.0,27.24042]
[1752075851308,0.75433,2651.1,2651.0,27.4313]
[1752075851710,0.75433,2651.1,2651.0,28.18562]
[1752075852220,0.75433,2651.1,2651.0,27.4313]
[1752075853114,1.43593,2651.1,2651.0,27.4313]
[1752075853318,3.18934393,2651.1,2651.0,26.4861]
[1752075853517,3.18934393,2651.1,2651.0,25.82]
[1752075854321,0.75438,2650.8,2650.7,7.66227979]
[1752075854523,3.18939393,2650.8,2650.7,8.32837979]
[1752075854818,3.18939393,2650.8,2650.7,27.4303]
[1752075855123,3.18939393,2650.8,2650.7,32.63918979]
[1752075855322,3.18939393,2650.8,2650.7,28.18471]
[1752075855529,1.43598,2650.8,2650.7,28.18471]
[1752075855717,0.75438,2650.8,2650.7,28.18471]
[1752075855918,0.75438,2650.8,2650.7,33.32068979]
[1752075856221,0.75438,2650.8,2650.7,28.86621]
[1752075857320,0.75432,2651.1,2651.0,0.75429]
[1752075857518,0.75432,2651.1,2651.0,27.4293]
[1752075858217,1.43592,2651.1,2651.0,0.6661]
[1752075858424,3.18933393,2651.1,2651.0,0.6661]
[1752075858623,0.75432,2651.0,2650.9,25.818]
[1752075858821,0.75435,2650.9,2650.8,30.31267734]
[1752075859021,3.18936393,2650.9,2650.8,30.97877734]
[1752075860020,3.18936393,2650.9,2650.8,26.4831]
[1752075860915,3.18936393,2650.9,2650.8,25.817]
[1752075861114,0.75438,2650.8,2650.7,4.49467734]
[1752075861319,1.43598,2650.8,2650.7,30.31167734]
[1752075861515,1.43598,2650.8,2650.7,4.49467734]
[1752075861725,0.75441,2650.7,2650.6,25.817]
[1752075861920,0.75441,2650.7,2650.3,3.2078]
[1752075861921,4.32107393,2650.7,2650.5,25.817]
[1752075862120,3.16325393,2650.6,2650.5,25.817]
[1752075862319,3.16325393,2650.6,2650.5,1.42057]
[1752075862525,3.84485393,2650.6,2650.5,1.42057]
[1752075862921,3.16325393,2650.6,2650.5,1.42057]
[1752075863121,2.09144,2650.6,2650.5,2.36577]
[1752075863321,1.40984,2650.6,2650.5,2.36577]
[1752075863824,1.40984,2650.6,2650.5,1.6113]
[1752075863825,2.09144,2650.6,2650.5,1.6113]
[1752075864922,1.40984,2650.6,2650.5,2.36577]
[1752075865124,0.75443,2650.7,2650.6,0.75441]
[1752075865322,0.75443,2650.7,2650.6,4.48402393]
[1752075865521,2.50853,2650.9,2650.6,34.36471393]
[1752075865522,0.6226,2650.9,2650.6,34.36471393]
[1752075865721,0.7544,2650.8,2650.7,3.04498]
[1752075865923,0.7544,2650.8,2650.7,3.71108]
[1752075867122,0.6226,2650.9,2650.8,0.75438]
[1752075867123,1.37697,2650.9,2650.8,0.75438]
[1752075867422,0.75434,2651.1,2651.0,0.75431]
[1752075867628,1.40619,2651.2,2651.1,0.7543]
[1752075868018,2.08779,2651.2,2651.1,2.3656]
[1752075868924,1.3335,2651.2,2651.1,2.3656]
[1752075869226,2.08777,2651.2,2651.1,2.3656]
[1752075870629,0.75426,2651.3,2651.2,0.75425]
[1752075871030,0.75427,2651.2,2651.1,2.08517]
[1752075871427,0.75427,2651.2,2651.1,3.69647]
[1752075872232,1.43587,2651.2,2651.1,1.6113]
[1752075872629,0.75427,2651.2,2651.1,1.6113]
[1752075872928,1.43587,2651.2,2651.1,2.3656]
[1752075873128,0.75427,2651.2,2651.1,1.6113]
[1752075873326,1.43587,2651.2,2651.1,1.6113]
[1752075873521,0.75427,2651.2,2651.1,1.6113]
[1752075873719,1.43587,2651.2,2651.1,2.3656]
[1752075874232,1.43587,2651.2,2651.1,1.6113]
[1752075875132,1.43587,2651.2,2651.1,0.6661]
[1752075875728,1.43587,2651.2,2651.1,1.4204]
[1752075875930,1.43587,2651.2,2651.1,1.6113]
[1752075876129,0.6816,2651.2,2651.1,2.3656]
[1752075877526,1.43587,2651.2,2651.1,2.3656]
[1752075879434,0.6816,2651.2,2651.1,2.3656]
[1752075881346,1.43587,2651.2,2651.1,28.1766]
[1752075881837,0.6816,2651.2,2651.1,28.1766]
[1752075882038,1.43587,2651.2,2651.1,28.1766]
[1752075882835,1.43587,2651.2,2651.1,27.4213]
[1752075883033,1.43587,2651.2,2651.1,28.1756]
[1752075883331,2.56728,2651.2,2650.9,4.49579172]
[1752075883532,2.56728,2651.2,2650.9,5.25012172]
[1752075883533,2.50773393,2651.0,2650.9,5.25012172]
[1752075883737,2.50773393,2651.0,2650.9,27.23393]
[1752075883938,3.17533393,2651.0,2650.9,27.23393]
[1752075884136,3.17533393,2651.0,2650.9,28.21593]
[1752075884639,3.17533393,2651.0,2650.9,27.23393]
[1752075884832,3.17533393,2651.0,2650.9,28.21593]
[1752075885033,1.42192,2651.0,2650.9,28.21593]
[1752075885234,0.6676,2651.0,2650.9,28.21593]
[1752075885535,1.42192,2651.0,2650.9,28.21593]
[1752075890839,0.6676,2651.0,2650.9,28.21593]
[1752075891040,1.42192,2651.0,2650.9,28.21593]
[1752075891639,0.6676,2651.0,2650.9,28.21593]
[1752075891839,1.42192,2651.0,2650.9,28.21593]
[1752075892438,1.42192,2651.0,2650.9,27.23393]
[1752075892639,1.42192,2651.0,2650.9,28.21593]
[1752075895038,0.75435,2650.9,2650.8,5.25014172]
[1752075895238,1.42195,2650.9,2650.8,30.30279172]
[1752075895438,0.75438,2650.8,2650.7,4.49579172]
[1752075895639,3.17539393,2650.8,2650.7,26.4766]
[1752075895839,2.50779393,2650.8,2650.7,26.4766]
[1752075896248,3.17539393,2650.8,2650.7,27.23101]
[1752075896457,3.17539393,2650.8,2650.7,26.4766]
[1752075896657,3.17539393,2650.8,2650.7,1.42401]
[1752075896861,3.17539393,2650.8,2650.7,0.6696]
[1752075899963,4.30701393,2650.8,2650.6,25.806]
[1752075900160,1.37071,2650.7,2650.6,25.806]
[1752075900360,0.75447,2650.5,2650.4,30.30179172]
[1752075900556,0.75447,2650.5,2650.4,31.72588172]
[1752075900859,0.75447,2650.5,2650.4,6.90188172]
[1752075901062,0.75447,2650.5,2650.4,2.40609]
[1752075901063,1.42207,2650.5,2650.4,2.40609]
[1752075904855,1.42207,2650.5,2650.4,1.6516]
[1752075905058,1.42207,2650.5,2650.4,2.40609]
[1752075905462,1.88573,2651.2,2650.5,1.88612]
[1752075905655,1.88573,2651.2,2651.1,0.6696]
[1752075905656,1.38537,2651.2,2651.1,0.6696]
[1752075905860,1.38537,2651.2,2651.1,4.15931393]
[1752075906060,1.38537,2651.2,2651.1,29.21101393]
[1752075906366,1.38537,2651.2,2651.1,29.96531393]
[1752075906666,0.75426,2651.3,2651.2,0.75425]
[1752075906866,3.2078,2651.6,2651.3,0.75422]
[1752075906867,0.75422,2651.4,2651.3,0.75422]
[1752075907065,0.75422,2651.4,2651.3,2.40582]
[1752075907260,1.3985,2651.5,2651.4,0.75421]
[1752075907467,1.3985,2651.5,2651.4,2.40581]
[1752075907763,1.3985,2651.5,2651.4,1.6516]
[1752075908463,3.2078,2652.0,2651.4,4.8594]
[1752075908663,0.7541,2651.8,2651.7,0.75412]
[1752075908864,1.39839,2651.9,2651.7,1.42372]
[1752075909067,1.39839,2651.9,2651.8,1.6835]
[1752075909270,1.39837,2651.9,2651.8,2.3574]
[1752075909462,1.3153,2651.9,2651.8,2.3574]
[1752075909668,0.6443,2651.9,2651.8,2.3574]
[1752075909869,0.6341,2652.2,2651.8,2.9396]
[1752075910070,0.75407,2651.9,2651.8,3.69368]
[1752075910269,0.75406,2652.0,2651.9,0.75407]
[1752075910470,0.671,2652.0,2651.9,2.35737]
[1752075910978,1.42504,2652.0,2651.9,1.6033]
[1752075912068,1.42504,2652.0,2651.9,2.35737]
[1752075912263,1.42504,2652.0,2651.9,1.6033]
[1752075912468,1.42504,2652.0,2651.9,0.6739]
[1752075912960,1.42504,2652.0,2651.9,1.42797]
[1752075913973,1.42504,2652.0,2651.9,2.35737]
[1752075915074,1.42504,2652.0,2651.9,1.6033]
[1752075915278,1.42504,2652.0,2651.9,2.35737]
[1752075915470,0.671,2652.0,2651.9,2.35737]
[1752075915665,2.50743393,2652.1,2652.0,0.75404]
[1752075915876,3.17843393,2652.1,2652.0,2.35734]
[1752075916172,2.50743393,2652.1,2652.0,2.35734]
[1752075916372,3.17843393,2652.1,2652.0,2.35734]
[1752075916575,0.6341,2652.2,2652.1,0.75401]
[1752075916770,1.3881,2652.2,2652.1,2.35731]
[1752075916973,3.2078,2652.3,2652.2,0.75398]
[1752075917172,3.96175,2652.3,2652.2,1.42788]
[1752075917370,3.96175,2652.3,2652.2,2.35728]
[1752075917572,4.63275,2652.3,2652.2,2.35728]
[1752075917773,4.63275,2652.3,2652.2,0.6739]
[1752075918174,4.63275,2652.3,2652.2,1.42788]
[1752075918576,1.42495,2652.3,2652.2,1.42788]
[1752075918975,1.42495,2652.3,2652.2,2.35728]
[1752075920680,0.75394,2652.4,2652.3,0.75393]
[1752075920880,1.42494,2652.4,2652.3,0.75393]
[1752075921381,0.75394,2652.4,2652.3,0.75393]
[1752075921574,1.42494,2652.4,2652.3,0.75393]
[1752075922280,0.75395,2652.3,2652.2,2.35726]
[1752075922678,1.42495,2652.4,2652.3,0.75395]
[1752075924477,0.75395,2652.4,2652.3,2.35725]
[1752075924683,1.42495,2652.4,2652.3,2.35725]
[1752075925080,1.42495,2652.4,2652.3,1.6033]
[1752075925381,3.17836393,2652.4,2652.3,1.6033]
[1752075926683,3.17836393,2652.4,2652.3,2.35725]
[1752075927083,1.42495,2652.4,2652.3,2.35725]
[1752075928390,1.42495,2652.4,2652.3,1.6033]
[1752075929277,1.42495,2652.4,2652.3,2.35725]
[1752075931291,0.75395,2652.4,2652.3,2.35725]
[1752075932691,0.75392,2652.5,2652.4,0.7539]
[1752075932886,0.6376,2652.6,2652.5,0.7539]
[1752075932887,1.39149,2652.6,2652.5,0.7539]
[1752075933283,3.14490393,2652.6,2652.5,0.7539]
[1752075933791,0.7539,2652.5,2652.4,1.68331]
[1752075933994,1.4249,2652.5,2652.4,1.68331]
[1752075936294,0.7539,2652.5,2652.4,2.35721]
[1752075936993,0.75388,2652.6,2652.5,0.75386]
[1752075937394,1.42488,2652.6,2652.5,0.75386]
[1752075938184,1.42488,2652.6,2652.5,1.6375]
[1752075938390,3.17829393,2652.6,2652.5,0.6739]
[1752075938794,0.75393,2652.4,2652.3,27.49953]
[1752075939001,1.42493,2652.4,2652.3,28.17343]
[1752075939288,1.38383,2652.4,2652.3,28.17343]
[1752075941294,0.6299,2652.4,2652.3,28.17343]
[1752075941594,0.75392,2652.5,2652.4,0.75393]
[1752075941895,0.75392,2652.5,2652.4,2.37973]
[1752075942291,1.38382,2652.5,2652.4,2.37973]
[1752075943898,3.13723393,2652.5,2652.4,0.6622]
[1752075944198,3.13723393,2652.5,2652.4,1.41613]
[1752075951303,3.13723393,2652.5,2652.4,2.37973]
[1752075952305,3.13723393,2652.5,2652.2,4.49579172]
[1752075952306,0.75395,2652.3,2652.2,4.49579172]
[1752075952499,0.75407,2651.9,2651.8,5.61973966]
[1752075952711,2.50748393,2651.9,2651.8,5.61973966]
[1752075952910,0.7541,2651.8,2651.7,5.61973966]
[1752075953113,0.75412,2651.7,2651.6,5.61973966]
[1752075953310,2.50753393,2651.7,2651.6,0.6622]
[1752075953913,0.75415,2651.6,2651.5,7.33750966]
[1752075954113,0.75415,2651.6,2651.5,7.99970966]
[1752075955807,0.75415,2651.6,2651.5,6.37390966]
[1752075956008,1.38405,2651.6,2651.5,7.99970966]
[1752075956214,0.75415,2651.6,2651.5,7.24553966]
[1752075956419,1.38405,2651.6,2651.5,2.37998]
[1752075956616,0.75415,2651.6,2651.5,2.37998]
[1752075956813,1.38405,2651.6,2651.5,2.37998]
[1752075957013,1.38405,2651.6,2651.5,1.6258]
[1752075960222,1.38405,2651.6,2651.5,2.37998]
[1752075962216,1.38405,2651.6,2651.5,1.6258]
[1752075963017,1.38405,2651.6,2651.5,2.37998]
[1752075966323,0.6222,2651.8,2651.7,0.75412]
[1752075966519,0.6222,2651.8,2651.7,2.37992]
[1752075966921,1.88499,2652.2,2651.8,1.88525]
[1752075966922,0.75403,2652.1,2651.8,1.88525]
[1752075967222,2.00383,2652.1,2652.0,1.41624]
[1752075967422,2.00383,2652.1,2652.0,2.36154]
[1752075967622,1.37393,2652.1,2652.0,1.6075]
[1752075967823,2.00383,2652.1,2652.0,0.6622]
[1752075968023,2.00383,2652.1,2652.0,1.41624]
[1752075968223,2.00383,2652.1,2652.0,0.6622]
[1752075970024,2.00383,2652.1,2652.0,1.41624]
[1752075970426,2.00383,2652.1,2652.0,0.6622]
[1752075971430,2.00383,2652.1,2652.0,1.41624]
[1752075972328,2.00383,2652.1,2652.0,0.6622]
[1752075972928,2.00383,2652.1,2652.0,1.41624]
[1752075973227,2.00383,2652.1,2652.0,1.41724]
[1752075973629,2.00383,2652.1,2652.0,0.6632]
[1752075977033,2.00383,2652.1,2652.0,2.36254]
[1752075977034,1.37391,2652.1,2652.0,2.36254]
[1752075977226,3.2078,2652.6,2652.0,4.00451393]
[1752075977426,1.39482,2652.5,2652.4,0.7539]
[1752075977620,1.39482,2652.5,2652.4,1.4171]
[1752075977828,1.39482,2652.5,2652.4,2.3624]
[1752075978527,0.75392,2652.5,2652.4,2.3624]
[1752075979233,0.75392,2652.5,2652.4,3.005]
[1752075980429,0.6409,2652.8,2652.4,4.13589]
[1752075980732,3.96161,2652.9,2652.8,0.75381]
[1752075980926,3.96161,2652.9,2652.8,2.36231]
[1752075982237,4.61731,2652.9,2652.8,2.36231]
[1752075982434,3.96161,2652.9,2652.8,2.36231]
[1752075982626,4.61731,2652.9,2652.8,1.6085]
[1752075984128,0.75381,2652.9,2652.8,2.36231]
[1752075984933,1.43366,2653.1,2653.0,0.75376]
[1752075985131,2.08936,2653.1,2653.0,1.41696]
[1752075985332,1.43366,2653.1,2653.0,2.36226]
[1752075985527,0.6799,2653.1,2653.0,2.36226]
[1752075985728,0.75369,2653.3,2653.2,0.75367]
[1752075985930,1.43245,2653.4,2653.3,0.75367]
[1752075986130,1.43245,2653.4,2653.3,2.36217]
[1752075986631,4.4942,2653.8,2653.3,3.4718]
[1752075986829,1.43239,2653.6,2653.5,0.75359]
[1752075987027,1.43239,2653.6,2653.5,2.36209]
[1752075987228,2.08809,2653.6,2653.5,2.36209]
[1752075988128,3.2078,2653.8,2653.5,3.49252]
[1752075988329,3.2078,2653.8,2653.7,2.50697393]
[1752075988533,1.43227,2654.1,2653.9,0.75348]
[1752075988735,0.6788,2654.1,2654.0,1.6085]
[1752075988938,1.3345,2654.1,2654.0,1.6085]
[1752075989635,2.08796,2654.1,2654.0,1.6085]
[1752075990536,2.08796,2654.1,2654.0,0.6632]
[1752075991532,2.08796,2654.1,2654.0,2.36197]
[1752075991929,2.08794,2654.1,2654.0,2.36197]
[1752075992130,3.96123,2654.2,2654.1,0.75344]
[1752075992334,3.96123,2654.2,2654.1,2.36194]
[1752075992535,3.96123,2654.2,2654.1,1.6085]
[1752075992727,4.61693,2654.2,2654.1,1.6085]
[1752075992931,4.61693,2654.2,2654.1,0.6632]
[1752075993132,0.75353,2653.8,2653.7,1.69884]
[1752075993329,0.75352,2653.9,2653.7,1.6085]
[1752075993531,0.75352,2653.9,2653.8,0.7535]
[1752075993839,1.40922,2653.9,2653.8,2.362]
[1752075994039,0.75352,2653.9,2653.8,2.362]
[1752075994235,1.40922,2653.9,2653.8,1.6085]
[1752075994436,2.03462,2653.9,2653.8,0.6632]
[1752075994637,4.4889,2653.9,2653.3,0.9453]
[1752075994838,4.4889,2653.9,2653.4,0.75362]
[1752075994839,0.75363,2653.5,2653.4,0.75362]
[1752075995041,0.75363,2653.5,2653.4,1.41682]
[1752075995942,0.75363,2653.5,2653.4,0.6632]
[1752075997040,2.09983,2653.5,2653.4,0.6632]
[1752075998842,0.7537,2653.2,2653.1,0.75371]
[1752075999147,0.7537,2653.2,2653.1,1.41691]
[1752075999339,0.7537,2653.2,2653.1,0.6632]
[1752076001045,1.4158,2653.2,2653.1,0.6632]
[1752076001447,3.16921393,2653.2,2653.1,0.6632]
[1752076001745,0.75376,2653.0,2652.9,3.2078]
[1752076001945,2.50717393,2653.0,2652.9,0.6631]
[1752076002146,2.50717393,2653.0,2652.9,1.6611]
[1752076002940,1.41586,2653.0,2652.9,1.6611]
[1752076003142,0.75376,2653.0,2652.9,2.41488]
[1752076004638,0.75376,2653.0,2652.9,1.6611]
[1752076006643,0.75376,2653.0,2652.9,2.41488]
[1752076006844,0.7536,2653.6,2653.5,0.75361]
[1752076007042,3.96135,2653.8,2653.6,0.75357]
[1752076007238,3.96133,2653.8,2653.7,3.17007393]
[1752076007441,3.2078,2653.8,2653.7,4.16807393]
[1752076007941,0.6184,2654.1,2654.0,0.75347]
[1752076008147,3.2078,2654.2,2654.1,0.75344]
[1752076008347,0.75338,2654.4,2654.2,0.75341]
[1752076008538,1.41548,2654.4,2654.3,0.6631]
[1752076008846,0.6621,2654.4,2654.3,1.41649]
[1752076009048,0.6621,2654.4,2654.3,2.41449]
[1752076010249,3.8262,2654.6,2654.3,1.6611]
[1752076010250,0.6184,2654.6,2654.3,1.6611]
[1752076010446,0.6184,2654.6,2654.5,0.75333]
[1752076010638,1.2805,2654.6,2654.5,2.41443]
[1752076010845,0.6184,2654.6,2654.5,2.41443]
[1752076011146,0.75324,2654.9,2654.7,0.75326]
[1752076011344,0.75324,2654.9,2654.7,1.41636]
[1752076011544,0.75324,2654.9,2654.8,0.75325]
[1752076011744,1.41534,2654.9,2654.8,0.6631]
[1752076012146,3.96101,2655.0,2654.8,2.41435]
[1752076012344,0.75322,2654.9,2654.8,2.41435]
[1752076013241,3.2078,2655.0,2654.8,1.6611]
[1752076013649,3.96101,2655.0,2654.9,1.75122]
[1752076013845,4.62311,2655.0,2654.9,1.6611]
[1752076014653,4.62311,2655.0,2654.9,2.41432]
[1752076015546,4.62311,2655.0,2654.9,1.6611]
[1752076015746,4.62311,2655.0,2654.9,0.6631]
[1752076015946,1.41531,2655.0,2654.9,0.6631]
[1752076016148,1.41531,2655.0,2654.9,1.41632]
[1752076016552,1.75341393,2655.2,2654.9,1.41632]
[1752076016553,0.75317,2655.2,2655.1,0.75314]
[1752076016849,0.75307,2655.5,2655.1,3.54399]
[1752076017045,0.75307,2655.5,2655.4,0.75305]
[1752076017245,1.41517,2655.5,2655.4,0.6631]
[1752076017550,0.75307,2655.5,2655.4,0.6631]
[1752076017745,1.41517,2655.5,2655.4,1.41618]
[1752076017946,1.41517,2655.5,2655.4,0.6631]
[1752076019550,1.41517,2655.5,2655.4,1.41618]
[1752076020347,1.41517,2655.5,2655.4,0.6631]
[1752076020651,1.41517,2655.5,2655.4,1.41618]
[1752076020846,1.41517,2655.5,2655.4,0.6631]
[1752076022447,1.41517,2655.5,2655.4,1.41618]
[1752076023446,1.41517,2655.5,2655.4,2.41418]
[1752076023646,1.41517,2655.5,2655.4,1.6611]
[1752076023847,1.41517,2655.5,2655.4,2.41418]
[1752076024042,0.75307,2655.5,2655.4,4.16759393]
[1752076024251,0.75304,2655.6,2655.5,0.75302]
[1752076024450,3.2078,2655.9,2655.6,0.75302]
[1752076024651,0.75294,2656.0,2655.9,0.75292]
[1752076024948,0.75296,2655.8,2655.7,2.08497]
[1752076025154,2.56253,2656.1,2655.8,0.75294]
[1752076025155,0.75296,2655.9,2655.8,0.75294]
[1752076025356,0.75296,2655.9,2655.8,0.6631]
[1752076025551,1.41506,2655.9,2655.8,1.6611]
[1752076026355,0.75302,2655.6,2655.5,4.2058]
[1752076026652,0.75302,2655.6,2655.5,5.62195]
[1752076027052,0.75302,2655.6,2655.5,4.8689]
[1752076027256,1.41512,2655.6,2655.5,4.8689]
[1752076027455,0.75302,2655.6,2655.5,5.62195]
[1752076027645,41.01727669,2657.4,2655.5,5.62195]
[1752076027646,3.2078,2656.2,2655.5,11.62231393]
[1752076027850,0.75288,2656.1,2656.0,1.75341393]
[1752076028050,0.75293,2655.9,2655.8,1.74336]
[1752076028254,0.75288,2656.1,2656.0,0.6631]
[1752076028554,1.41498,2656.1,2656.0,1.6535]
[1752076029155,1.41498,2656.1,2656.0,2.40641]
[1752076030058,1.41498,2656.1,2656.0,1.6535]
[1752076030252,1.4132,2656.1,2655.5,4.1982]
[1752076030458,3.30342882,2655.9,2655.2,5.4806]
[1752076030760,0.75306,2655.5,2655.4,0.75305]
[1752076030948,1.43626,2655.5,2655.4,1.39985]
[1752076031150,1.2622,2655.8,2655.4,0.6468]
[1752076031348,1.3739,2656.0,2655.9,0.75293]
[1752076031553,0.7511,2656.0,2655.9,0.75293]
[1752076034056,3.2078,2656.2,2656.1,0.75288]
[1752076034258,3.2078,2656.2,2656.1,1.74328]
[1752076034556,0.75283,2656.3,2656.2,0.75285]
[1752076035155,0.75283,2656.3,2656.1,0.9904]
[1752076035156,1.42171,2656.4,2656.3,0.75282]
[1752076035354,0.75283,2656.3,2656.2,0.75283]
[1752076035752,1.42171,2656.4,2656.3,0.75282]
[1752076035953,2.10491,2656.4,2656.3,1.39962]
[1752076036354,2.10491,2656.4,2656.3,0.6468]
[1752076036553,0.75286,2656.2,2656.1,0.75285]
[1752076036754,0.75284,2656.3,2656.2,0.75285]
[1752076036955,1.43604,2656.3,2656.2,1.39965]
[1752076037554,0.6832,2656.3,2656.0,0.75287]
[1752076037755,3.30342882,2656.2,2655.7,1.656]
[1752076037958,0.75292,2656.0,2655.9,0.7529]
[1752076038157,0.75292,2656.0,2655.9,1.3997]
[1752076038158,0.6832,2656.0,2655.9,1.3997]
[1752076038351,1.43611,2656.0,2655.9,1.3997]
[1752076039357,0.75293,2655.9,2655.8,0.75294]
[1752076039563,0.75299,2655.8,2655.7,0.75297]
[1752076039757,1.43619,2655.8,2655.7,0.75297]
[1752076039955,1.43619,2655.8,2655.7,1.39977]
[1752076040156,0.75299,2655.8,2655.7,1.39977]
[1752076040355,1.43619,2655.8,2655.7,1.39977]
[1752076041152,0.75299,2655.7,2655.6,0.753]
[1752076041356,1.43619,2655.7,2655.6,0.753]
[1752076041552,0.75305,2655.6,2655.5,0.75303]
[1752076041761,0.75308,2655.5,2655.4,0.75306]
[1752076042058,0.75308,2655.4,2655.3,3.96088]
[1752076042259,2.09878,2655.4,2655.3,4.60768]
[1752076042860,1.3457,2655.4,2655.3,4.60768]
[1752076043059,1.3457,2655.4,2655.3,5.59808]
[1752076043360,2.09878,2655.4,2655.3,5.59808]
[1752076043763,2.09878,2655.4,2655.3,2.39028]
[1752076043952,0.75312,2655.3,2655.2,0.75311]
[1752076044158,0.6625,2655.4,2655.2,0.6468]
[1752076044353,0.75311,2655.3,2655.2,1.39991]
[1752076044561,1.43631,2655.3,2655.2,2.39031]
[1752076045158,0.75313,2655.2,2655.1,0.75314]
[1752076045461,0.75313,2655.2,2654.9,4.1982]
[1752076045462,0.75319,2655.1,2655.0,0.75317]
[1752076045760,0.6832,2655.1,2655.0,0.6468]
[1752076045961,1.43636,2655.1,2655.0,1.39998]
[1752076046260,0.6832,2655.1,2655.0,1.39998]
[1752076047658,0.6832,2655.1,2655.0,2.07028]
[1752076049264,3.2078,2655.5,2655.4,0.75308]
[1752076049566,3.891,2655.5,2655.4,0.75308]
[1752076051166,0.6832,2655.5,2655.4,2.39028]
[1752076051971,0.6733,2655.7,2655.6,0.75302]
[1752076052266,1.3565,2655.7,2655.6,1.39982]
[1752076052462,1.3565,2655.7,2655.6,2.39022]
[1752076052661,0.75293,2656.0,2655.6,2.39022]
[1752076052863,0.6439,2656.0,2655.9,0.75293]
[1752076053166,0.6439,2656.0,2655.9,2.39013]
[1752076053365,1.3271,2656.0,2655.9,2.39013]
[1752076055572,3.2078,2656.2,2656.1,0.75288]
[1752076055767,3.2078,2656.2,2656.1,2.39008]
[1752076056372,3.891,2656.2,2656.1,2.39008]
[1752076057078,0.6832,2656.2,2656.1,2.39008]
[1752076057273,1.4067,2656.4,2656.3,0.75282]
[1752076057577,0.6539,2656.4,2656.3,2.36662]
[1752076057773,2.08989,2656.4,2656.3,2.36662]
[1752076057974,1.40669,2656.4,2656.3,2.36662]
[1752076058275,1.40669,2656.4,2656.3,1.39962]
[1752076058276,2.08989,2656.4,2656.3,1.39962]
[1752076059465,1.3371,2656.4,2656.3,2.36662]
[1752076059872,2.08989,2656.4,2656.3,2.36662]
[1752076060179,1.3371,2656.4,2656.3,2.36662]
[1752076062174,2.08989,2656.4,2656.3,0.75282]
[1752076062672,2.08989,2656.4,2655.9,3.2078]
[1752076062673,7.27423882,2656.4,2655.9,3.2078]
[1752076062872,0.75293,2656.0,2655.9,0.75293]
[1752076063076,0.75298,2655.8,2655.7,0.75296]
[1752076063272,1.38998,2655.8,2655.7,1.42486]
[1752076063482,0.75298,2655.8,2655.7,1.42486]
[1752076063871,0.6445,2655.9,2655.8,0.75296]
[1752076064074,0.75288,2656.2,2656.1,0.75286]
[1752076064274,0.6445,2656.2,2656.1,0.75286]
[1752076064580,2.03435,2656.2,2656.1,1.42476]
[1752076064873,2.03435,2656.2,2656.1,1.42478]
[1752076065074,5.24215,2656.2,2656.1,1.42478]
[1752076065274,2.03435,2656.2,2656.1,1.42478]
[1752076065476,1.66717202,2656.2,2656.1,1.42478]
[1752076066773,1.66717202,2656.2,2656.1,0.75288]
[1752076067179,0.75297,2655.9,2655.8,0.75291]
[1752076067378,1.52522202,2656.2,2655.8,0.6719]
[1752076067578,1.03018202,2656.2,2656.1,0.75288]
[1752076067873,1.03018202,2656.2,2655.9,2.84934]
[1752076067874,0.75288,2656.1,2656.0,0.75288]
[1752076068075,0.75288,2656.1,2656.0,1.42478]
[1752076068576,1.38988,2656.1,2656.0,1.42478]
[1752076068979,1.38988,2656.1,2656.0,0.75288]
[1752076069180,1.38988,2656.1,2656.0,1.42478]
[1752076070180,1.38988,2656.1,2656.0,0.75288]
[1752076070375,2.67218,2656.1,2656.0,0.75288]
[1752076070775,0.75296,2655.8,2655.7,0.75296]
[1752076070978,0.75302,2655.7,2655.6,0.75299]
[1752076071181,3.30602,2655.7,2655.6,0.75299]
[1752076071479,3.30602,2655.7,2655.6,1.42489]
[1752076071882,3.30602,2655.7,2655.6,0.6719]
[1752076072880,3.30602,2655.7,2655.6,1.42492]
[1752076073678,2.67232,2655.7,2655.6,1.42492]
[1752076074678,2.03532,2655.7,2655.6,1.42492]
[1752076074873,1.9193,2655.7,2655.6,1.42492]